fUSD/lending_fUSD_20250330
["ID","MTS","AMOUNT","RATE_DAILY","PERIOD"]
[356869145,1743346262994,-500.0,0.00052328,120]
[356869146,1743346263011,-2232.9,0.00052328,120]
[356869147,1743346263027,-500.0,0.00052328,120]
[356869148,1743346263044,-699.29,0.00052328,120]
[356869149,1743346263062,-568.11365458,0.00052328,120]
[356869150,1743346263078,-500.0,0.00052328,120]
[356869151,1743346263097,-500.0,0.00052328,120]
[356869152,1743346263114,-500.0,0.00052328,120]
[356869153,1743346263131,-234.24,0.00052328,7]
[356869154,1743346263147,-506.44,0.00052328,120]
[356869155,1743346263162,-500.0,0.00052328,120]
[356869156,1743346263177,-500.0,0.00052328,120]
[356869157,1743346263192,-500.0,0.00052328,120]
[356869158,1743346263208,-732.51,0.00052328,120]
[356869159,1743346263224,-2815.39,0.00052328,120]
[356869160,1743346263240,-500.0,0.00052328,120]
[356869161,1743346263255,-191.91658545,0.00052328,120]
[356869162,1743346263271,-1274.94,0.00052328,120]
[356869163,1743346263287,-500.0,0.00052328,120]
[356869164,1743346263303,-500.0,0.00052328,120]
[356869165,1743346263319,-500.0,0.00052328,120]
[356869166,1743346263337,-153.6766645,0.00052328,120]
[356869167,1743346263348,-1080.01,0.00052328,100]
[356869168,1743346263501,-500.0,0.00052328,120]
[356869169,1743346263511,-503.33,0.00052328,120]
[356869170,1743346263520,-500.0,0.00052328,120]
[356869171,1743346263530,-500.0,0.00052328,120]
[356869172,1743346263540,-500.0,0.00052328,120]
[356869173,1743346263549,-501.06,0.00052328,120]
[356869174,1743346263559,-512.55,0.00052328,120]
[356869175,1743346263569,-5054.95,0.00052328,120]
[356869176,1743346263579,-500.0,0.00052328,120]
[356869177,1743346263588,-1035.75,0.00052328,120]
[356869178,1743346263598,-500.0,0.00052328,120]
[356869179,1743346263607,-500.0,0.00052328,120]
[356869180,1743346263617,-935.26,0.00052328,120]
[356869181,1743346263627,-1671.16,0.00052328,120]
[356869182,1743346263637,-1184.02,0.00052328,120]
[356869183,1743346263646,-500.0,0.00052328,120]
[356869184,1743346263656,-804.42,0.00052328,120]
[356869185,1743346263666,-500.0,0.00052328,120]
[356869186,1743346263675,-500.0,0.00052328,120]
[356869187,1743346263685,-500.0,0.00052328,120]
[356869188,1743346263696,-1247.17,0.00052328,120]
[356869189,1743346263706,-500.0,0.00052328,120]
[356869190,1743346263715,-500.0,0.00052328,120]
[356869191,1743346263725,-500.0,0.00052328,120]
[356869192,1743346263734,-500.0,0.00052328,120]
[356869193,1743346263744,-500.0,0.00052328,120]
[356869194,1743346263753,-3995.83,0.00052328,120]
[356869195,1743346263763,-500.0,0.00052328,120]
[356869196,1743346263772,-500.0,0.00052328,120]
[356869197,1743346263782,-500.0,0.00052328,120]
[356869198,1743346263792,-551.86,0.00052328,120]
[356869199,1743346263802,-500.0,0.00052328,120]
[356869200,1743346263812,-1144.31,0.00052328,120]
[356869201,1743346263822,-500.0,0.00052328,120]
[356869202,1743346263831,-500.0,0.00052328,120]
[356869203,1743346263841,-5469.89,0.00052328,120]
[356869204,1743346263851,-500.0,0.00052328,120]
[356869205,1743346263861,-500.0,0.00052328,120]
[356869206,1743346263870,-634.12,0.00052328,120]
[356869207,1743346263879,-500.0,0.00052328,120]
[356869208,1743346263889,-765.27,0.00052328,120]
[356869209,1743346263899,-553.68,0.00052328,120]
[356869210,1743346263909,-1194.86,0.00052328,120]
[356869211,1743346263921,-1492.47,0.00052328,120]
[356869212,1743346263932,-500.0,0.00052328,120]
[356869213,1743346263942,-1345.57,0.00052328,120]
[356869214,1743346263953,-634.73,0.00052328,120]
[356869215,1743346263963,-542.75,0.00052328,120]
[356869216,1743346263973,-942.51,0.00052328,120]
[356869217,1743346263984,-1289.53,0.00052328,7]
[356869218,1743346263995,-243.07482339,0.00052328,120]
[356869219,1743346264005,-2763.1,0.00052328,120]
[356869220,1743346264015,-521.18,0.00052328,120]
[356869221,1743346264025,-3033.67,0.00052328,120]
[356869222,1743346264035,-500.0,0.00052328,120]
[356869223,1743346264045,-500.0,0.00052328,120]
[356869224,1743346264055,-500.0,0.00052328,120]
[356869225,1743346264066,-500.0,0.00052328,120]
[356869226,1743346264075,-500.0,0.00052328,120]
[356869227,1743346264085,-1628.66,0.00052328,120]
[356869228,1743346264095,-500.0,0.00052328,120]
[356869229,1743346264105,-500.0,0.00052328,120]
[356869230,1743346264115,-500.0,0.00052328,120]
[356869231,1743346264124,-500.0,0.00052328,120]
[356869232,1743346264134,-2681.66,0.00052328,120]
[356869233,1743346264144,-808.39,0.00052602,120]
[356869234,1743346264154,-1090.28,0.00052602,120]
[356869235,1743346264164,-500.0,0.00052602,120]
[356869236,1743346264173,-2456.74,0.00052602,120]
[356869237,1743346264183,-258.13250112,0.00052602,120]
[356869238,1743346264192,-589.26,0.00052602,120]
[356869239,1743346264203,-500.0,0.00052602,120]
[356869240,1743346264213,-2232.9,0.00052602,120]
[356869241,1743346264222,-500.0,0.00052602,120]
[356869242,1743346264232,-699.29,0.00052602,120]
[356869243,1743346264242,-500.0,0.00052602,120]
[356869244,1743346264252,-500.0,0.00052602,120]
[356869245,1743346264262,-500.0,0.00052602,120]
[356869246,1743346264271,-234.24,0.00052602,7]
[356869247,1743346264281,-506.44,0.00052602,120]
[356869248,1743346264291,-500.0,0.00052602,120]
[356869249,1743346264301,-500.0,0.00052602,120]
[356869250,1743346264310,-500.0,0.00052602,120]
[356869251,1743346264321,-732.51,0.00052602,120]
[356869252,1743346264330,-2815.39,0.00052602,120]
[356869253,1743346264339,-500.0,0.00052602,120]
[356869254,1743346264349,-1274.94,0.00052602,120]
[356869255,1743346264358,-500.0,0.00052602,120]
[356869256,1743346264368,-500.0,0.00052602,120]
[356869257,1743346264378,-500.0,0.00052602,120]
[356869258,1743346264387,-1080.01,0.00052602,100]
[356869259,1743346264397,-500.0,0.00052602,120]
[356869260,1743346264407,-503.33,0.00052602,120]
[356869261,1743346264416,-500.0,0.00052602,120]
[356869262,1743346264426,-500.0,0.00052602,120]
[356869263,1743346264435,-500.0,0.00052602,120]
[356869264,1743346264445,-501.06,0.00052602,120]
[356869265,1743346264455,-512.55,0.00052602,120]
[356869266,1743346264465,-5054.95,0.00052602,120]
[356869267,1743346264474,-500.0,0.00052602,120]
[356869268,1743346264484,-1035.75,0.00052602,120]
[356869269,1743346264493,-500.0,0.00052602,120]
[356869270,1743346264503,-500.0,0.00052602,120]
[356869271,1743346264512,-935.26,0.00052602,120]
[356869272,1743346264521,-1671.16,0.00052602,120]
[356869273,1743346264531,-1184.02,0.00052602,120]
[356869274,1743346264541,-500.0,0.00052602,120]
[356869275,1743346264551,-804.42,0.00052602,120]
[356869276,1743346264560,-500.0,0.00052602,120]
[356869277,1743346264569,-500.0,0.00052602,120]
[356869278,1743346264579,-500.0,0.00052602,120]
[356869279,1743346264589,-1247.17,0.00052602,120]
[356869280,1743346264598,-500.0,0.00052602,120]
[356869281,1743346264608,-554.85,0.00052602,120]
[356869282,1743346264617,-500.0,0.00052602,120]
[356869283,1743346264626,-500.0,0.00052602,120]
[356869284,1743346264636,-500.0,0.00052602,120]
[356869285,1743346264645,-3995.83,0.00052602,120]
[356869286,1743346264654,-500.0,0.00052602,120]
[356869287,1743346264663,-500.0,0.00052602,120]
[356869288,1743346264673,-500.0,0.00052602,120]
[356869289,1743346264682,-551.86,0.00052602,120]
[356869290,1743346264691,-500.0,0.00052602,120]
[356869291,1743346264703,-1144.31,0.00052602,120]
[356869292,1743346264712,-500.0,0.00052602,120]
[356869293,1743346264722,-500.0,0.00052602,120]
[356869294,1743346264731,-5469.89,0.00052602,120]
[356869295,1743346264741,-500.0,0.00052602,120]
[356869296,1743346264750,-290.36155575,0.00052602,120]
[356869297,1743346264760,-634.12,0.00052602,120]
[356869298,1743346264769,-469.126882,0.00052602,120]
[356869299,1743346264778,-765.27,0.00052602,120]
[356869300,1743346264788,-553.68,0.00052602,120]
[356869301,1743346264798,-1194.86,0.00052602,120]
[356869302,1743346264807,-1492.47,0.00052602,120]
[356869303,1743346264817,-500.0,0.00052602,120]
[356869304,1743346264826,-1345.57,0.00052602,120]
[356869305,1743346264835,-634.73,0.00052602,120]
[356869306,1743346264845,-542.75,0.00052602,120]
[356869307,1743346264854,-942.51,0.00052602,120]
[356869308,1743346264864,-1289.53,0.00052602,7]
[356869309,1743346264873,-2763.1,0.00052602,120]
[356869310,1743346264882,-521.18,0.00052602,120]
[356869311,1743346264892,-3033.67,0.00052602,120]
[356869312,1743346264901,-460.35053229,0.00052602,120]
[356869313,1743346264910,-500.0,0.00052602,120]
[356869314,1743346264921,-500.0,0.00052602,120]
[356869315,1743346264930,-218.951174,0.00052602,120]
[356869316,1743346264939,-500.0,0.00052602,120]
[356869317,1743346264950,-1628.66,0.00052602,120]
[356869318,1743346264959,-504.38693133,0.00052602,120]
[356869319,1743346264970,-500.0,0.00052602,120]
[356869320,1743346264979,-500.0,0.00052602,120]
[356869321,1743346264988,-500.0,0.00052602,120]
[356869322,1743346264999,-2681.66,0.00052602,120]
[356869323,1743346265008,-518.89172062,0.00052691,60]
[356869324,1743346265018,-808.39,0.00052876,120]
[356869325,1743346265027,-1090.28,0.00052876,120]
[356869326,1743346265036,-500.0,0.00052876,120]
[356869327,1743346265046,-2456.74,0.00052876,120]
[356869328,1743346265055,-589.26,0.00052876,120]
[356869329,1743346265064,-500.0,0.00052876,120]
[356869330,1743346265074,-2232.9,0.00052876,120]
[356869331,1743346265083,-500.0,0.00052876,120]
[356869332,1743346265093,-699.29,0.00052876,120]
[356869333,1743346265103,-500.0,0.00052876,120]
[356869334,1743346265113,-500.0,0.00052876,120]
[356869335,1743346265123,-500.0,0.00052876,120]
[356869336,1743346265132,-234.24,0.00052876,7]
[356869337,1743346265141,-506.44,0.00052876,120]
[356869338,1743346265150,-500.0,0.00052876,120]
[356869339,1743346265159,-500.0,0.00052876,120]
[356869340,1743346265168,-500.0,0.00052876,120]
[356869341,1743346265178,-732.51,0.00052876,120]
[356869342,1743346265187,-2815.39,0.00052876,120]
[356869343,1743346265197,-500.0,0.00052876,120]
[356869344,1743346265207,-1274.94,0.00052876,120]
[356869345,1743346265216,-500.0,0.00052876,120]
[356869346,1743346265226,-500.0,0.00052876,120]
[356869347,1743346265236,-500.0,0.00052876,120]
[356869348,1743346265245,-1080.01,0.00052876,100]
[356869349,1743346265255,-500.0,0.00052876,120]
[356869350,1743346265264,-503.33,0.00052876,120]
[356869351,1743346265273,-500.0,0.00052876,120]
[356869352,1743346265283,-500.0,0.00052876,120]
[356869353,1743346265388,-500.0,0.00052876,120]
[356869354,1743346265398,-501.06,0.00052876,120]
[356869355,1743346265408,-512.55,0.00052876,120]
[356869356,1743346265418,-5054.95,0.00052876,120]
[356869357,1743346265427,-500.0,0.00052876,120]
[356869358,1743346265437,-1035.75,0.00052876,120]
[356869359,1743346265447,-500.0,0.00052876,120]
[356869360,1743346265456,-635.93443871,0.00052876,120]
[356869361,1743346265465,-935.26,0.00052876,120]
[356869362,1743346265475,-1671.16,0.00052876,120]
[356869363,1743346265484,-1184.02,0.00052876,120]
[356869364,1743346265494,-500.0,0.00052876,120]
[356869365,1743346265503,-804.42,0.00052876,120]
[356869366,1743346265512,-500.0,0.00052876,120]
[356869367,1743346265521,-500.0,0.00052876,120]
[356869368,1743346265530,-500.0,0.00052876,120]
[356869369,1743346265540,-1247.17,0.00052876,120]
[356869370,1743346265549,-500.0,0.00052876,120]
[356869371,1743346265558,-500.0,0.00052876,120]
[356869372,1743346265567,-500.0,0.00052876,120]
[356869373,1743346265577,-500.0,0.00052876,120]
[356869374,1743346265586,-3995.83,0.00052876,120]
[356869375,1743346265595,-500.0,0.00052876,120]
[356869376,1743346265605,-500.0,0.00052876,120]
[356869377,1743346265614,-500.0,0.00052876,120]
[356869378,1743346265624,-551.86,0.00052876,120]
[356869379,1743346265633,-352.72815301,0.00052876,120]
[356869380,1743346265642,-1144.31,0.00052876,120]
[356869381,1743346265651,-500.0,0.00052876,120]
[356869382,1743346265661,-545.93546713,0.00052876,120]
[356869383,1743346265670,-5469.89,0.00052876,120]
[356869384,1743346265680,-327.15358752,0.00052876,120]
[356869385,1743346265689,-634.12,0.00052876,120]
[356869386,1743346265701,-765.27,0.00052876,120]
[356869387,1743346265711,-553.68,0.00052876,120]
[356869388,1743346265721,-1194.86,0.00052876,120]
[356869389,1743346265731,-1492.47,0.00052876,120]
[356869390,1743346265740,-500.0,0.00052876,120]
[356869391,1743346265749,-1345.57,0.00052876,120]
[356869392,1743346265759,-634.73,0.00052876,120]
[356869393,1743346265768,-542.75,0.00052876,120]
[356869394,1743346265778,-942.51,0.00052876,120]
[356869395,1743346265788,-1289.53,0.00052876,7]
[356869396,1743346265798,-2763.1,0.00052876,120]
[356869397,1743346265808,-521.18,0.00052876,120]
[356869398,1743346265817,-3033.67,0.00052876,120]
[356869399,1743346265827,-500.0,0.00052876,120]
[356869400,1743346265836,-500.0,0.00052876,120]
[356869401,1743346265846,-500.0,0.00052876,120]
[356869402,1743346265855,-1628.66,0.00052876,120]
[356869403,1743346265864,-500.0,0.00052876,120]
[356869404,1743346265874,-500.0,0.00052876,120]
[356869405,1743346265884,-500.0,0.00052876,120]
[356869406,1743346265893,-2681.66,0.00052876,120]
[356869407,1743346265904,-808.39,0.0005315,120]
[356869408,1743346265913,-1090.28,0.0005315,120]
[356869409,1743346265925,-500.0,0.0005315,120]
[356869410,1743346265934,-2456.74,0.0005315,120]
[356869411,1743346265945,-589.26,0.0005315,120]
[356869412,1743346265955,-379.33684376,0.0005315,120]
[356869413,1743346265965,-2232.9,0.0005315,120]
[356869414,1743346265974,-500.0,0.0005315,120]
[356869415,1743346265984,-699.29,0.0005315,120]
[356869416,1743346265994,-500.0,0.0005315,120]
[356869417,1743346266003,-500.0,0.0005315,120]
[356869418,1743346266013,-500.0,0.0005315,120]
[356869419,1743346266023,-234.24,0.0005315,7]
[356869420,1743346266032,-506.44,0.0005315,120]
[356869421,1743346266041,-500.0,0.0005315,120]
[356869422,1743346266050,-212.81548963,0.0005315,120]
[356869423,1743346266059,-223.91389843,0.0005315,120]
[356869424,1743346266068,-732.51,0.0005315,120]
[356869425,1743346266077,-2815.39,0.0005315,120]
[356869426,1743346266087,-369.22646801,0.0005315,120]
[356869427,1743346266096,-1274.94,0.0005315,120]
[356869428,1743346266106,-500.0,0.0005315,120]
[356869429,1743346266115,-500.0,0.0005315,120]
[356869430,1743346266125,-500.0,0.0005315,120]
[356869431,1743346266134,-1080.01,0.0005315,100]
[356869432,1743346266144,-500.0,0.0005315,120]
[356869433,1743346266153,-503.33,0.0005315,120]
[356869434,1743346266163,-500.0,0.0005315,120]
[356869435,1743346266172,-406.18806295,0.0005315,120]
[356869436,1743346266181,-500.0,0.0005315,120]
[356869437,1743346266190,-501.06,0.0005315,120]
[356869438,1743346266202,-512.55,0.0005315,120]
[356869439,1743346266211,-5054.95,0.0005315,120]
[356869440,1743346266221,-500.0,0.0005315,120]
[356869441,1743346266230,-1035.75,0.0005315,120]
[356869442,1743346266239,-512.25882547,0.0005315,120]
[356869443,1743346266249,-935.26,0.0005315,120]
[356869444,1743346266258,-1671.16,0.0005315,120]
[356869445,1743346266267,-1184.02,0.0005315,120]
[356869446,1743346266276,-500.0,0.0005315,120]
[356869447,1743346266286,-804.42,0.0005315,120]
[356869448,1743346266295,-500.0,0.0005315,120]
[356869449,1743346266305,-500.0,0.0005315,120]
[356869450,1743346266314,-500.0,0.0005315,120]
[356869451,1743346266323,-1247.17,0.0005315,120]
[356869452,1743346266336,-248.75767993,0.0005315,120]
[356869453,1743346266345,-500.0,0.0005315,120]
[356869454,1743346266354,-500.0,0.0005315,120]
[356869455,1743346266364,-500.0,0.0005315,120]
[356869456,1743346266373,-3995.83,0.0005315,120]
[356869457,1743346266382,-500.0,0.0005315,120]
[356869458,1743346266391,-500.0,0.0005315,120]
[356869459,1743346266401,-500.0,0.0005315,120]
[356869460,1743346266410,-551.86,0.0005315,120]
[356869461,1743346266419,-1144.31,0.0005315,120]
[356869462,1743346266428,-500.0,0.0005315,120]
[356869463,1743346266438,-5469.89,0.0005315,120]
[356869464,1743346266447,-634.12,0.0005315,120]
[356869465,1743346266456,-765.27,0.0005315,120]
[356869466,1743346266466,-553.68,0.0005315,120]
[356869467,1743346266475,-1194.86,0.0005315,120]
[356869468,1743346266485,-1492.47,0.0005315,120]
[356869469,1743346266494,-500.0,0.0005315,120]
[356869470,1743346266504,-1345.57,0.0005315,120]
[356869471,1743346266513,-634.73,0.0005315,120]
[356869472,1743346266523,-542.75,0.0005315,120]
[356869473,1743346266532,-942.51,0.0005315,120]
[356869474,1743346266542,-1289.53,0.0005315,7]
[356869475,1743346266551,-2763.1,0.0005315,120]
[356869476,1743346266560,-521.18,0.0005315,120]
[356869477,1743346266570,-3033.67,0.0005315,120]
[356869478,1743346266579,-500.0,0.0005315,120]
[356869479,1743346266588,-500.0,0.0005315,120]
[356869480,1743346266598,-500.0,0.0005315,120]
[356869481,1743346266607,-1628.66,0.0005315,120]
[356869482,1743346266618,-500.0,0.0005315,120]
[356869483,1743346266627,-500.0,0.0005315,120]
[356869484,1743346266637,-500.0,0.0005315,120]
[356869485,1743346266647,-2681.66,0.0005315,120]
[356869486,1743346266656,-292.4506053,0.00053349,4]
[356869487,1743346266665,-808.39,0.00053424,120]
[356869488,1743346266675,-1090.28,0.00053424,120]
[356869489,1743346266684,-178.58765265,0.00053424,120]
[356869490,1743346266694,-2456.74,0.00053424,120]
[356869491,1743346266704,-589.26,0.00053424,120]
[356869492,1743346266713,-2232.9,0.00053424,120]
[356869493,1743346266723,-446.41656718,0.00053424,120]
[356869494,1743346266732,-699.29,0.00053424,120]
[356869495,1743346266741,-598.29,0.00053424,120]
[356869496,1743346266750,-500.0,0.00053424,120]
[356869497,1743346266760,-313.99624204,0.00053424,120]
[356869498,1743346266769,-234.24,0.00053424,7]
[356869499,1743346266779,-506.44,0.00053424,120]
[356869500,1743346266788,-500.0,0.00053424,120]
[356869501,1743346266797,-732.51,0.00053424,120]
[356869502,1743346266807,-2815.39,0.00053424,120]
[356869503,1743346266816,-1274.94,0.00053424,120]
[356869504,1743346266825,-500.0,0.00053424,120]
[356869505,1743346266835,-500.0,0.00053424,120]
[356869506,1743346266845,-500.0,0.00053424,120]
[356869507,1743346266855,-1080.01,0.00053424,100]
[356869508,1743346266864,-500.0,0.00053424,120]
[356869509,1743346266873,-503.33,0.00053424,120]
[356869510,1743346266882,-175.78253478,0.00053424,120]
[356869511,1743346266891,-500.0,0.00053424,120]
[356869512,1743346266901,-501.06,0.00053424,120]
[356869513,1743346266911,-512.55,0.00053424,120]
[356869514,1743346266922,-5054.95,0.00053424,120]
[356869515,1743346266932,-500.0,0.00053424,120]
[356869516,1743346266941,-1035.75,0.00053424,120]
[356869517,1743346266951,-935.26,0.00053424,120]
[356869518,1743346266960,-1671.16,0.00053424,120]
[356869519,1743346266970,-1184.02,0.00053424,120]
[356869520,1743346266980,-500.0,0.00053424,120]
[356869521,1743346266989,-804.42,0.00053424,120]
[356869522,1743346267001,-500.0,0.00053424,120]
[356869523,1743346267104,-532.25819347,0.00053424,120]
[356869524,1743346267114,-500.0,0.00053424,120]
[356869525,1743346267123,-1247.17,0.00053424,120]
[356869526,1743346267132,-500.0,0.00053424,120]
[356869527,1743346267141,-500.0,0.00053424,120]
[356869528,1743346267150,-500.0,0.00053424,120]
[356869529,1743346267159,-3995.83,0.00053424,120]
[356869530,1743346267168,-500.0,0.00053424,120]
[356869531,1743346267177,-500.0,0.00053424,120]
[356869532,1743346267186,-500.0,0.00053424,120]
[356869533,1743346267195,-551.86,0.00053424,120]
[356869534,1743346267206,-1144.31,0.00053424,120]
[356869535,1743346267215,-500.0,0.00053424,120]
[356869536,1743346267224,-5469.89,0.00053424,120]
[356869537,1743346267233,-634.12,0.00053424,120]
[356869538,1743346267242,-765.27,0.00053424,120]
[356869539,1743346267251,-553.68,0.00053424,120]
[356869540,1743346267260,-1194.86,0.00053424,120]
[356869541,1743346267269,-1492.47,0.00053424,120]
[356869542,1743346267279,-500.0,0.00053424,120]
[356869543,1743346267288,-1345.57,0.00053424,120]
[356869544,1743346267297,-634.73,0.00053424,120]
[356869545,1743346267306,-542.75,0.00053424,120]
[356869546,1743346267316,-942.51,0.00053424,120]
[356869547,1743346267325,-1289.53,0.00053424,7]
[356869548,1743346267335,-2763.1,0.00053424,120]
[356869549,1743346267344,-521.18,0.00053424,120]
[356869550,1743346267354,-3033.67,0.00053424,120]
[356869551,1743346267363,-500.0,0.00053424,120]
[356869552,1743346267372,-500.0,0.00053424,120]
[356869553,1743346267381,-500.0,0.00053424,120]
[356869554,1743346267390,-1628.66,0.00053424,120]
[356869555,1743346267400,-500.0,0.00053424,120]
[356869556,1743346267410,-500.0,0.00053424,120]
[356869557,1743346267419,-500.0,0.00053424,120]
[356869558,1743346267429,-2681.66,0.00053424,120]
[356869559,1743346267438,-159.96,0.00053425,120]
[356869560,1743346267447,-500.0,0.00053587,120]
[356869561,1743346267456,-500.0,0.00053587,120]
[356869562,1743346267466,-500.0,0.00053587,120]
[356869563,1743346267475,-500.0,0.00053587,120]
[356869564,1743346267484,-500.0,0.00053587,120]
[356869565,1743346267493,-500.0,0.00053587,120]
[356869566,1743346267502,-500.0,0.00053587,120]
[356869567,1743346267512,-500.0,0.00053587,120]
[356869568,1743346267521,-500.0,0.00053587,120]
[356869569,1743346267530,-500.0,0.00053587,120]
[356869570,1743346267540,-500.0,0.00053587,120]
[356869571,1743346267549,-500.0,0.00053587,120]
[356869572,1743346267558,-500.0,0.00053587,120]
[356869573,1743346267566,-500.0,0.00053587,120]
[356869574,1743346267575,-500.0,0.00053587,120]
[356869575,1743346267584,-500.0,0.00053587,120]
[356869576,1743346267593,-995.0,0.00053587,120]
[356869577,1743346267603,-261.95,0.00053589,2]
[356869578,1743346267612,-1000.0,0.00053661,120]
[356869579,1743346267622,-808.39,0.00053698,120]
[356869580,1743346267631,-1090.28,0.00053698,120]
[356869581,1743346267640,-2456.74,0.00053698,120]
[356869582,1743346267650,-589.26,0.00053698,120]
[356869583,1743346267659,-2232.9,0.00053698,120]
[356869584,1743346267668,-699.29,0.00053698,120]
[356869585,1743346267677,-500.0,0.00053698,120]
[356869586,1743346267686,-234.24,0.00053698,7]
[356869587,1743346267696,-506.44,0.00053698,120]
[356869588,1743346267705,-354.87879882,0.00053698,120]
[356869589,1743346267715,-732.51,0.00053698,120]
[356869590,1743346267724,-2815.39,0.00053698,120]
[356869591,1743346267733,-1274.94,0.00053698,120]
[356869592,1743346267743,-500.0,0.00053698,120]
[356869593,1743346267752,-500.0,0.00053698,120]
[356869594,1743346267761,-500.0,0.00053698,120]
[356869595,1743346267770,-1080.01,0.00053698,100]
[356869596,1743346267779,-500.0,0.00053698,120]
[356869597,1743346267788,-503.33,0.00053698,120]
[356869598,1743346267797,-500.0,0.00053698,120]
[356869599,1743346267807,-501.06,0.00053698,120]
[356869600,1743346267816,-512.55,0.00053698,120]
[356869601,1743346267826,-5054.95,0.00053698,120]
[356869602,1743346267835,-500.0,0.00053698,120]
[356869603,1743346267844,-1035.75,0.00053698,120]
[356869604,1743346267853,-935.26,0.00053698,120]
[356869605,1743346267862,-1671.16,0.00053698,120]
[356869606,1743346267871,-1184.02,0.00053698,120]
[356869607,1743346267881,-500.0,0.00053698,120]
[356869608,1743346267890,-804.42,0.00053698,120]
[356869609,1743346267899,-500.0,0.00053698,120]
[356869610,1743346267909,-500.0,0.00053698,120]
[356869611,1743346267918,-1247.17,0.00053698,120]
[356869612,1743346267930,-500.0,0.00053698,120]
[356869613,1743346267939,-500.0,0.00053698,120]
[356869614,1743346267948,-500.0,0.00053698,120]
[356869615,1743346267958,-3995.83,0.00053698,120]
[356869616,1743346267969,-621.36661362,0.00053698,120]
[356869617,1743346267978,-500.0,0.00053698,120]
[356869618,1743346267987,-500.0,0.00053698,120]
[356869619,1743346267996,-551.86,0.00053698,120]
[356869620,1743346268007,-1144.31,0.00053698,120]
[356869621,1743346268017,-500.0,0.00053698,120]
[356869622,1743346268025,-5469.89,0.00053698,120]
[356869623,1743346268035,-634.12,0.00053698,120]
[356869624,1743346268044,-765.27,0.00053698,120]
[356869625,1743346268053,-553.68,0.00053698,120]
[356869626,1743346268062,-1194.86,0.00053698,120]
[356869627,1743346268072,-1492.47,0.00053698,120]
[356869628,1743346268081,-544.56849908,0.00053698,120]
[356869629,1743346268092,-1345.57,0.00053698,120]
[356869630,1743346268101,-634.73,0.00053698,120]
[356869631,1743346268110,-542.75,0.00053698,120]
[356869632,1743346268119,-942.51,0.00053698,120]
[356869633,1743346268129,-1289.53,0.00053698,7]
[356869634,1743346268138,-2763.1,0.00053698,120]
[356869635,1743346268148,-521.18,0.00053698,120]
[356869636,1743346268157,-3033.67,0.00053698,120]
[356869637,1743346268166,-289.19781196,0.00053698,120]
[356869638,1743346268176,-271.09734237,0.00053698,120]
[356869639,1743346268185,-500.0,0.00053698,120]
[356869640,1743346268195,-1628.66,0.00053698,120]
[356869641,1743346268205,-371.49335455,0.00053698,120]
[356869642,1743346268215,-500.0,0.00053698,120]
[356869643,1743346268225,-500.0,0.00053698,120]
[356869644,1743346268235,-2681.66,0.00053698,120]